fUST/lending_fUST_20240912
["ID","MTS","AMOUNT","RATE_DAILY","PERIOD"]
[337791710,1726121447494,-500.0,0.00016712,2]
[337791711,1726121447504,-873.72,0.00016712,2]
[337791712,1726121447514,-500.0,0.00016712,2]
[337791713,1726121447525,-500.0,0.00016712,2]
[337791714,1726121447535,-500.0,0.00016712,2]
[337791715,1726121447545,-501.39533438,0.00016712,2]
[337791716,1726121447555,-924.92,0.00016712,2]
[337791717,1726121447567,-503.70628264,0.00016712,2]
[337791718,1726121447578,-500.22,0.00016712,2]
[337791719,1726121447589,-500.0,0.00016712,2]
[337791720,1726121447599,-242.47432569,0.00016712,2]
[337791721,1726121447611,-500.0,0.00016712,2]
[337791722,1726121447624,-500.0,0.00016712,2]
[337791723,1726121447635,-500.0,0.00016712,2]
[337791724,1726121447646,-500.0,0.00016712,2]
[337791725,1726121447657,-581.29,0.00016712,2]
[337791726,1726121447669,-500.0,0.00016712,2]
[337791727,1726121447878,-292.12437783,0.00016712,2]
[337791728,1726121447888,-511.98379605,0.00016712,2]
[337791729,1726121447899,-500.0,0.00016712,2]
[337791730,1726121447908,-500.0,0.00016712,2]
[337791731,1726121447918,-544.53189302,0.00016712,2]
[337791732,1726121447929,-500.0,0.00016712,2]
[337791733,1726121447940,-824.65,0.00016712,2]
[337791734,1726121447949,-501.65264834,0.00016712,2]
[337791735,1726121447959,-1398.07,0.00016712,2]
[337791736,1726121447969,-500.0,0.00016712,2]
[337791737,1726121447979,-500.0,0.00016712,2]
[337791738,1726121447989,-500.0,0.00016712,2]
[337791739,1726121447998,-639.0,0.00016712,2]
[337791740,1726121448008,-1082.88,0.00016712,2]
[337791741,1726121448019,-500.0,0.00016712,2]
[337791742,1726121448029,-500.0,0.00016712,2]
[337791743,1726121448038,-502.13593258,0.00016712,2]
[337791744,1726121448049,-500.0,0.00016712,2]
[337791745,1726121448061,-500.0,0.00016712,2]
[337791746,1726121448071,-151.0,0.00016712,2]
[337791747,1726121448082,-151.0,0.00016712,2]
[337791748,1726121448092,-500.0,0.00016712,2]
[337791749,1726121448101,-636.18553475,0.00016712,2]
[337791750,1726121448111,-500.0,0.00016712,2]
[337791751,1726121448122,-500.0,0.00016712,2]
[337791752,1726121448131,-500.0,0.00016712,2]
[337791753,1726121448141,-505.19940661,0.00016712,2]
[337791754,1726121448150,-500.0,0.00016712,2]
[337791755,1726121448161,-589.91,0.00016712,2]
[337791756,1726121448170,-500.97902861,0.00016712,2]
[337791757,1726121448180,-504.59807614,0.00016712,2]
[337791758,1726121448190,-500.0,0.00016712,2]
[337791759,1726121448202,-543.26,0.00016712,2]
[337791760,1726121448212,-682.96,0.00016712,2]
[337791761,1726121448222,-822.97,0.00016712,2]
[337791762,1726121448233,-500.0,0.00016712,2]
[337791763,1726121448243,-500.0,0.00016712,2]
[337791764,1726121448253,-190.026946,0.00016712,2]
[337791765,1726121448263,-507.77690809,0.00016712,2]
[337791766,1726121448273,-500.0,0.00016712,2]
[337791767,1726121448284,-500.0,0.00016712,2]
[337791768,1726121448295,-503.80015002,0.00016712,2]
[337791769,1726121448304,-510.01466914,0.00016712,2]
[337791770,1726121448314,-190.026946,0.00016712,2]
[337791771,1726121448325,-500.0,0.00016712,2]
[337791772,1726121448335,-500.0,0.00016712,2]
[337791773,1726121448346,-1315.99,0.00016712,2]
[337791774,1726121448356,-500.0,0.00016712,2]
[337791775,1726121448367,-500.0,0.00016712,2]
[337791776,1726121448377,-808.31450812,0.00016712,2]
[337791777,1726121452565,-49.18549188,0.00016712,2]
[337791778,1726121452578,-500.0,0.00016712,2]
[337791779,1726121452587,-498.88272717,0.00016712,2]
[337791780,1726121452597,-506.11390661,0.00016712,2]
[337791781,1726121452607,-500.0,0.00016712,2]
[337791782,1726121452617,-1015.36,0.00016712,2]
[337791783,1726121452627,-500.0,0.00016712,2]
[337791784,1726121452638,-500.0,0.00016712,2]
[337791785,1726121452649,-500.0,0.00016712,2]
[337791786,1726121452658,-500.0,0.00016712,2]
[337791787,1726121452668,-500.0,0.00016712,2]
[337791788,1726121452678,-1887.42,0.00016712,2]
[337791789,1726121452688,-500.0,0.00016712,2]
[337791790,1726121452698,-151.0,0.00016712,2]
[337791791,1726121452708,-515.43,0.00016712,2]
[337791792,1726121452717,-500.0,0.00016712,2]
[337791793,1726121452727,-1100.85,0.00016712,2]
[337791794,1726121452738,-500.0,0.00016712,2]
[337791795,1726121452747,-500.0,0.00016712,2]
[337791796,1726121452758,-500.0,0.00016712,2]
[337791797,1726121452770,-151.0,0.00016712,2]
[337791798,1726121452781,-500.0,0.00016712,2]
[337791799,1726121452791,-791.35,0.00016712,2]
[337791800,1726121452802,-500.0,0.00016712,2]
[337791801,1726121452818,-500.0,0.00016712,2]
[337791802,1726121452829,-500.0,0.00016712,2]
[337791803,1726121452839,-151.0,0.00016712,2]
[337791804,1726121452854,-500.0,0.00016712,2]
[337791805,1726121452867,-500.0,0.00016712,2]
[337791806,1726121452878,-500.0,0.00016712,2]
[337791807,1726121452889,-1107.99,0.00016712,2]
[337791808,1726121452899,-557.23,0.00016712,2]
[337791809,1726121452909,-518.98115601,0.00016712,2]
[337791810,1726121452921,-572.4,0.00016712,2]
[337791811,1726121452932,-500.0,0.00016712,2]
[337791812,1726121452942,-505.64,0.00016712,2]
[337791813,1726121452952,-500.0,0.00016712,2]
[337791814,1726121452962,-500.0,0.00016712,2]
[337791815,1726121452972,-690.06,0.00016712,2]
[337791816,1726121452982,-500.0,0.00016712,2]
[337791817,1726121452992,-500.0,0.00016712,2]
[337791818,1726121453002,-713.71,0.00016712,2]
[337791819,1726121453012,-7223.45018501,0.00016712,2]
[337791820,1726121455983,-3112.77074641,0.00016712,2]
[337791821,1726121456212,-545.09785256,0.00016712,2]
[337791822,1726121456615,-1507.75121602,0.00016712,2]
[337791823,1726121456625,-500.0,0.00016712,2]
[337791824,1726121456635,-500.0,0.00016712,2]
[337791825,1726121456645,-500.0,0.00016712,2]
[337791826,1726121456655,-151.0,0.00016712,2]
[337791827,1726121456666,-200.0,0.00016712,2]
[337791828,1726121456676,-621.295171,0.00016712,2]
[337791829,1726121456685,-500.0,0.00016712,2]
[337791830,1726121456695,-621.295171,0.00016712,2]
[337791831,1726121456704,-500.0,0.00016712,2]
[337791832,1726121456714,-737.47,0.00016712,2]
[337791833,1726121456723,-500.0,0.00016712,2]
[337791834,1726121456733,-1001.22,0.00016712,2]
[337791835,1726121456743,-506.27190518,0.00016712,2]
[337791836,1726121456753,-500.0,0.00016712,2]
[337791837,1726121456762,-897.4,0.00016712,2]
[337791838,1726121456772,-513.94186108,0.00016712,2]
[337791839,1726121456783,-500.0,0.00016712,2]
[337791840,1726121456792,-500.0,0.00016712,2]
[337791841,1726121456801,-964.2,0.00016712,2]
[337791842,1726121456812,-509.78280988,0.00016712,2]
[337791843,1726121456823,-500.0,0.00016712,2]
[337791844,1726121456832,-1423.16,0.00016712,2]
[337791845,1726121456842,-500.0,0.00016712,2]
[337791846,1726121456853,-500.0,0.00016712,2]
[337791847,1726121456864,-500.0,0.00016712,2]
[337791848,1726121456874,-151.0,0.00016712,2]
[337791849,1726121456883,-151.0,0.00016712,2]
[337791850,1726121456892,-512.81004279,0.00016712,2]
[337791851,1726121456908,-500.0,0.00016712,2]
[337791852,1726121456924,-500.0,0.00016712,2]
[337791853,1726121456940,-157.564412,0.00016712,2]
[337791854,1726121456956,-1611.83,0.00016712,2]
[337791855,1726121456970,-500.0,0.00016712,2]
[337791856,1726121456981,-500.0,0.00016712,2]
[337791857,1726121456994,-501.63758163,0.00016712,2]
[337791858,1726121457007,-1050.46,0.00016712,2]
[337791859,1726121457019,-500.0,0.00016712,2]
[337791860,1726121457036,-500.0,0.00016712,2]
[337791861,1726121457050,-555.22,0.00016712,2]
[337791862,1726121457064,-500.0,0.00016712,2]
[337791863,1726121457079,-500.0,0.00016712,2]
[337791864,1726121457093,-1074.66,0.00016712,2]
[337791865,1726121457106,-1273.64,0.00016712,2]
[337791866,1726121457119,-500.0,0.00016712,2]
[337791867,1726121457131,-500.0,0.00016712,2]
[337791868,1726121457144,-500.0,0.00016712,2]
[337791869,1726121457157,-344.17633184,0.00016712,2]
[337791870,1726121457170,-2346.75,0.00016712,2]
[337791871,1726121457183,-500.0,0.00016712,2]
[337791872,1726121457198,-500.0,0.00016712,2]
[337791873,1726121457212,-506.08629348,0.00016712,2]
[337791874,1726121457224,-1169.55,0.00016712,2]
[337791875,1726121457237,-151.0,0.00016712,2]
[337791876,1726121457251,-500.0,0.00016712,2]
[337791877,1726121457264,-15953.01,0.00016712,2]
[337791878,1726121457277,-690.09,0.00016712,2]
[337791879,1726121457289,-151.0,0.00016712,2]
[337791880,1726121457302,-500.0,0.00016712,2]
[337791881,1726121457314,-1514.14,0.00016712,2]
[337791882,1726121457328,-500.37,0.00016712,2]
[337791883,1726121457341,-500.0,0.00016712,2]
[337791884,1726121457354,-670.84,0.00016712,2]
[337791885,1726121457366,-500.0,0.00016712,2]
[337791886,1726121457377,-736.21,0.00016712,2]
[337791887,1726121457387,-500.0,0.00016712,2]
[337791888,1726121457398,-1043.33,0.00016712,2]
[337791889,1726121457409,-508.75518023,0.00016712,2]
[337791890,1726121457422,-500.0,0.00016712,2]
[337791891,1726121457434,-500.0,0.00016712,2]
[337791892,1726121457446,-504.92241837,0.00016712,2]
[337791893,1726121457457,-582.5,0.00016712,2]
[337791894,1726121457471,-504.53129312,0.00016712,2]
[337791895,1726121457483,-500.0,0.00016712,2]
[337791896,1726121457493,-500.0,0.00016712,2]
[337791897,1726121457504,-500.0,0.00016712,2]
[337791898,1726121457515,-1066.92,0.00016712,2]
[337791899,1726121457527,-500.0,0.00016712,2]
[337791900,1726121457537,-1278.69,0.00016712,2]
[337791901,1726121457547,-500.0,0.00016712,2]
[337791902,1726121457558,-500.0,0.00016712,2]
[337791903,1726121457569,-500.0,0.00016712,2]
[337791904,1726121457580,-500.0,0.00016712,2]
[337791905,1726121457591,-1332.55,0.00016712,2]
[337791906,1726121457604,-500.0,0.00016712,2]
[337791907,1726121457615,-500.0,0.00016712,2]
[337791908,1726121457626,-500.0,0.00016712,2]
[337791909,1726121457636,-740.32,0.00016712,2]
[337791910,1726121457648,-500.0,0.00016712,2]
[337791911,1726121457659,-500.0,0.00016712,2]
[337791912,1726121457670,-500.0,0.00016712,2]
[337791913,1726121457682,-500.0,0.00016712,2]
[337791914,1726121457693,-500.0,0.00016712,2]
[337791915,1726121457704,-886.39,0.00016712,2]
[337791916,1726121457716,-411.34829953,0.00016712,2]
[337791917,1726121457727,-810.42,0.00016712,2]
[337791918,1726121457738,-219.65621999,0.00016712,2]
[337791919,1726121457749,-770.47,0.00016712,2]
[337791920,1726121457759,-500.0,0.00016712,2]
[337791921,1726121457771,-348.55,0.00016712,2]
[337791922,1726121457782,-7292.49,0.00016712,2]
[337791923,1726121457793,-500.0,0.00016712,2]
[337791924,1726121457805,-500.0,0.00016712,2]
[337791925,1726121457815,-500.0,0.00016712,2]
[337791926,1726121457827,-1039.3,0.00016712,2]
[337791927,1726121457837,-506.45196876,0.00016712,2]
[337791928,1726121457848,-4148.57,0.00016712,2]
[337791929,1726121457862,-500.0,0.00016712,2]
[337791930,1726121457875,-500.0,0.00016712,2]
[337791931,1726121457887,-11633.83,0.00016712,2]
[337791932,1726121457899,-1457.46,0.00016712,2]
[337791933,1726121457910,-500.0,0.00016712,2]
[337791934,1726121457922,-28.56791718,0.00016712,2]
[337791935,1726121458177,-471.43208282,0.00016712,2]
[337791936,1726121458189,-500.0,0.00016712,2]
[337791937,1726121458201,-218.24002577,0.00016712,2]
[337791938,1726121458212,-500.0,0.00016712,2]
[337791939,1726121458223,-500.0,0.00016712,2]
[337791940,1726121458236,-458.16474378,0.00016712,2]
[337791941,1726121458247,-955.55,0.00016712,2]
[337791942,1726121458258,-500.0,0.00016712,2]
[337791943,1726121458269,-1205.78,0.00016712,2]
[337791944,1726121458281,-500.0,0.00016712,2]
[337791945,1726121458292,-500.0,0.00016712,2]
[337791946,1726121458303,-278.10533763,0.00016712,2]
[337791947,1726121458659,-500.0,0.00016438,2]
[337791948,1726121458668,-500.0,0.00016438,2]
[337791949,1726121458678,-223.95747299,0.00016712,2]
[337791950,1726121458688,-151.05,0.00016712,2]
[337791951,1726121458697,-500.0,0.00016712,2]
[337791952,1726121458707,-500.0,0.00016712,2]
[337791953,1726121458717,-697.1,0.00016712,2]
[337791954,1726121459020,-649.86,0.00016712,2]
[337791955,1726121459037,-1365.01,0.00016712,2]
[337791956,1726121459051,-500.0,0.00016712,2]
[337791957,1726121459062,-500.0,0.00016712,2]
[337791958,1726121459074,-1265.69,0.00016712,2]
[337791959,1726121459084,-500.0,0.00016712,2]
[337791960,1726121459093,-500.0,0.00016712,2]
[337791961,1726121459103,-225.07372055,0.00016712,2]
[337791962,1726121459114,-504.92599367,0.00016712,2]
[337791963,1726121459124,-500.0,0.00016712,2]
[337791964,1726121459133,-500.0,0.00016712,2]
[337791965,1726121459143,-500.0,0.00016712,2]
[337791966,1726121459153,-500.0,0.00016712,2]
[337791967,1726121459163,-507.9932503,0.00016712,2]
[337791968,1726121459172,-516.87,0.00016712,2]
[337791969,1726121459182,-500.0,0.00016712,2]
[337791970,1726121459191,-500.0,0.00016712,2]
[337791971,1726121459200,-505.54166548,0.00016712,2]
[337791972,1726121459210,-500.0,0.00016712,2]
[337791973,1726121459219,-538.76,0.00016712,2]
[337791974,1726121459229,-500.0,0.00016712,2]
[337791975,1726121459239,-511.93914735,0.00016712,2]
[337791976,1726121459249,-500.0,0.00016712,2]
[337791977,1726121459260,-229.029008,0.00016712,2]
[337791978,1726121459270,-500.0,0.00016712,2]
[337791979,1726121459280,-500.0,0.00016712,2]
[337791980,1726121459290,-500.0,0.00016712,2]
[337791981,1726121459299,-500.0,0.00016712,2]
[337791982,1726121459309,-535.19,0.00016712,2]
[337791983,1726121459318,-1450.65,0.00016712,2]
[337791984,1726121459328,-1590.58,0.00016712,2]
[337791985,1726121459337,-434.01232213,0.00016712,2]
[337791986,1726121459348,-500.0,0.00016712,2]
[337791987,1726121459358,-500.0,0.00016712,2]
[337791988,1726121459368,-504.27,0.00016712,2]
[337791989,1726121459377,-500.0,0.00016712,2]
[337791990,1726121459386,-500.0,0.00016712,2]
[337791991,1726121459396,-500.0,0.00016712,2]
[337791992,1726121459406,-151.0,0.00016966,2]
[337791993,1726121459416,-151.0,0.00016966,2]
[337791994,1726121459425,-151.0,0.00016966,2]
[337791995,1726121459435,-151.37378064,0.00016973,2]
[337791996,1726121459445,-48090.4070936,0.00016976,2]
[337791997,1726121459454,-160.03653084,0.00016985,2]
[337791998,1726121459464,-501.24529178,0.00016986,2]
[337791999,1726121459473,-501.8790204,0.00016986,2]
[337792000,1726121459483,-500.0,0.00016986,2]
[337792001,1726121459494,-606.49,0.00016986,2]
[337792002,1726121459505,-500.9524763,0.00016986,2]
[337792003,1726121459516,-255.07732189,0.00016986,2]
[337792004,1726121459530,-500.0,0.00016986,2]
[337792005,1726121459539,-500.0,0.00016986,2]
[337792006,1726121459548,-483.35798194,0.00016986,2]
[337792007,1726121459557,-500.0,0.00016986,2]
[337792008,1726121459567,-500.0,0.00016986,2]
[337792009,1726121459577,-795.02,0.00016986,2]
[337792010,1726121459587,-500.0,0.00016986,2]
[337792011,1726121459596,-614.16,0.00016986,2]
[337792012,1726121459606,-360.73,0.00016986,2]
[337792013,1726121459615,-500.71985358,0.00016986,2]
[337792014,1726121459624,-808.63,0.00016986,2]
[337792015,1726121459633,-517.52225358,0.00016986,2]
[337792016,1726121459642,-500.0,0.00016986,2]
[337792017,1726121459652,-500.0,0.00016986,2]
[337792018,1726121459660,-1908.5,0.00016986,2]
[337792019,1726121459670,-500.0,0.00016986,2]
[337792020,1726121459680,-500.0,0.00016986,2]
[337792021,1726121459689,-502.23135201,0.00016986,2]
[337792022,1726121459699,-502.61441016,0.00016986,2]
[337792023,1726121459708,-589.49515845,0.00016986,2]
[337792024,1726121459719,-503.32606653,0.00016986,2]
[337792025,1726121459731,-555.07818233,0.00016986,2]
[337792026,1726121459742,-500.0,0.00016986,2]
[337792027,1726121459752,-500.0,0.00016986,2]
[337792028,1726121459763,-500.0,0.00016986,2]
[337792029,1726121459773,-500.0,0.00016986,2]
[337792030,1726121459783,-500.0,0.00016986,2]
[337792031,1726121459792,-500.0,0.00016986,2]
[337792032,1726121459802,-500.0,0.00016986,2]
[337792033,1726121459811,-552.23,0.00016986,2]
[337792034,1726121459825,-502.76222325,0.00016986,2]
[337792035,1726121459835,-500.0,0.00016986,2]
[337792036,1726121459845,-2120.97,0.00016986,2]
[337792037,1726121459858,-500.0,0.00016986,2]
[337792038,1726121459870,-1044.98,0.00016986,2]
[337792039,1726121459883,-500.0,0.00016986,2]
[337792040,1726121459892,-500.0,0.00016986,2]
[337792041,1726121459902,-725.95,0.00016986,2]
[337792042,1726121459911,-151.0,0.00016986,2]
[337792043,1726121459920,-151.0,0.00016986,2]
[337792044,1726121459933,-500.0,0.00016986,2]
[337792045,1726121459943,-500.0,0.00016986,2]
[337792046,1726121459952,-151.0,0.00016986,2]
[337792047,1726121459961,-495.75550351,0.00016986,2]
[337792048,1726121459971,-151.0,0.00016986,2]
[337792049,1726121459980,-500.0,0.00016986,2]
[337792050,1726121459990,-500.0,0.00016986,2]
[337792051,1726121459999,-500.0,0.00016986,2]
[337792052,1726121460009,-500.0,0.00016986,2]
[337792053,1726121460019,-496.11163108,0.00016986,2]
[337792054,1726121460029,-163.6601284,0.00016986,2]
[337792055,1726121460038,-501.80186464,0.00016986,2]
[337792056,1726121460047,-504.83752884,0.00016986,2]
[337792057,1726121460058,-500.0,0.00016986,2]
[337792058,1726121460068,-1005.36,0.00016986,2]
[337792059,1726121460077,-156.25321,0.00016986,2]
[337792060,1726121460087,-500.0,0.00016986,2]
[337792061,1726121460096,-1298.29,0.00016986,2]
[337792062,1726121460106,-156.25321,0.00016986,2]
[337792063,1726121460115,-545.01704193,0.00016986,2]
[337792064,1726121460125,-502.23973073,0.00016986,2]
[337792065,1726121460135,-500.0,0.00016986,2]
[337792066,1726121460147,-501.96867687,0.00016986,2]
[337792067,1726121460157,-506.35302767,0.00016986,2]
[337792068,1726121460167,-500.0,0.00016986,2]
[337792069,1726121460177,-503.26379179,0.00016986,2]
[337792070,1726121460186,-500.0,0.00016986,2]
[337792071,1726121460196,-224.65760659,0.00016986,2]
[337792072,1726121460205,-500.0,0.00016986,2]
[337792073,1726121460215,-594.98,0.00016986,2]
[337792074,1726121460224,-500.0,0.00016986,2]
[337792075,1726121460233,-500.0,0.00016986,2]
[337792076,1726121460244,-524.27,0.00016986,2]
[337792077,1726121460254,-500.0,0.00016986,2]
[337792078,1726121460263,-506.54690317,0.00016986,2]
[337792079,1726121460272,-500.0,0.00016986,2]
[337792080,1726121460282,-500.0,0.00016986,2]
[337792081,1726121460291,-702.73,0.00016986,2]
[337792082,1726121460301,-500.0,0.00016986,2]
[337792083,1726121460311,-556.93,0.00016986,2]
[337792084,1726121460325,-500.0,0.00016986,2]
[337792085,1726121460335,-507.43112107,0.00016986,2]
[337792086,1726121460344,-500.0,0.00016986,2]
[337792087,1726121460353,-500.0,0.00016986,2]
[337792088,1726121460363,-1208.12,0.00016986,2]
[337792089,1726121460372,-492.76881585,0.00016986,2]
[337792090,1726121460382,-500.0,0.00016986,2]
[337792091,1726121460391,-303.43200319,0.00016986,2]
[337792092,1726121460401,-500.0,0.00016986,2]
[337792093,1726121460410,-503.36597922,0.00016986,2]
[337792094,1726121460420,-517.99,0.00016986,2]
[337792095,1726121460429,-500.0,0.00016986,2]
[337792096,1726121460439,-500.0,0.00016986,2]
[337792097,1726121460448,-500.0,0.00016986,2]
[337792098,1726121460459,-1666.86,0.00016986,2]
[337792099,1726121460468,-763.48,0.00016986,2]
[337792100,1726121460478,-1073.64,0.00016986,2]
[337792101,1726121460488,-618.35,0.00016986,2]
[337792102,1726121460497,-500.0,0.00016986,2]
[337792103,1726121460509,-643.74,0.00016986,2]
[337792104,1726121460519,-151.0,0.00016986,2]
[337792105,1726121460528,-1264.64,0.00016986,2]
[337792106,1726121460538,-500.0,0.00016986,2]
[337792107,1726121460547,-500.0,0.00016986,2]
[337792108,1726121460558,-500.0,0.00016986,2]
[337792109,1726121460568,-151.0,0.00016986,2]
[337792110,1726121460578,-500.0,0.00016986,2]
[337792111,1726121460588,-921.92,0.00016986,2]
[337792112,1726121460598,-500.0,0.00016986,2]
[337792113,1726121460607,-500.0,0.00016986,2]
[337792114,1726121460617,-500.0,0.00016986,2]
[337792115,1726121460627,-504.66581372,0.00016986,2]
[337792116,1726121460636,-1429.74,0.00016986,2]
[337792117,1726121460646,-500.0,0.00016986,2]
[337792118,1726121460656,-1762.4,0.00016986,2]
[337792119,1726121460666,-1113.12,0.00016986,2]
[337792120,1726121460675,-500.0,0.00016986,2]
[337792121,1726121460685,-500.0,0.00016986,2]
[337792122,1726121460694,-501.39645571,0.00016986,2]
[337792123,1726121460703,-794.517859,0.00016986,2]
[337792124,1726121460713,-500.0,0.00016986,2]
[337792125,1726121460722,-500.0,0.00016986,2]
[337792126,1726121460731,-500.0,0.00016986,2]
[337792127,1726121460740,-504.32377385,0.00016986,2]
[337792128,1726121460750,-794.517859,0.00016986,2]
[337792129,1726121460759,-500.0,0.00016986,2]
[337792130,1726121460768,-513.15700449,0.00016986,2]
[337792131,1726121460778,-313.9994179,0.00016986,2]
[337792132,1726121460787,-2451.39,0.00016986,2]
[337792133,1726121460797,-706.19,0.00016986,2]
[337792134,1726121460806,-500.0,0.00016986,2]
[337792135,1726121460815,-1932.79,0.00016986,2]
[337792136,1726121460824,-1821.32,0.00016986,2]
[337792137,1726121460833,-500.0,0.00016986,2]
[337792138,1726121460843,-500.0,0.00016986,2]
[337792139,1726121460855,-218.02453242,0.00016986,2]
[337792140,1726121460865,-500.0,0.00016986,2]
[337792141,1726121460874,-500.0,0.00016986,2]
[337792142,1726121460884,-500.0,0.00016986,2]
[337792143,1726121460893,-507.67069557,0.00016986,2]
[337792144,1726121460904,-500.0,0.00016986,2]
[337792145,1726121460913,-500.0,0.00016986,2]
[337792146,1726121460922,-500.0,0.00016986,2]
[337792147,1726121460932,-500.0,0.00016986,2]
[337792148,1726121460942,-523.393542,0.00016986,2]
[337792149,1726121460951,-1955.09,0.00016986,2]
[337792150,1726121460962,-601.79,0.00016986,2]
[337792151,1726121460971,-523.393542,0.00016986,2]
[337792152,1726121460982,-500.0,0.00016986,2]
[337792153,1726121460992,-500.0,0.00016986,2]
[337792154,1726121461001,-500.0,0.00016986,2]
[337792155,1726121461012,-873.72,0.00016986,2]
[337792156,1726121461023,-500.0,0.00016986,2]
[337792157,1726121461032,-184.2954887,0.00016986,2]
[337792158,1726121461041,-500.0,0.00016986,2]
[337792159,1726121461051,-924.92,0.00016986,2]
[337792160,1726121461060,-500.22,0.00016986,2]
[337792161,1726121461070,-498.06258291,0.00016986,2]
[337792162,1726121461079,-500.0,0.00016986,2]
[337792163,1726121461088,-500.0,0.00016986,2]
[337792164,1726121461097,-500.0,0.00016986,2]
[337792165,1726121461106,-581.29,0.00016986,2]
[337792166,1726121461115,-533.8451906,0.00016986,2]
[337792167,1726121461125,-824.65,0.00016986,2]
[337792168,1726121461134,-500.0,0.00016986,2]
[337792169,1726121461143,-222.400699,0.00016986,2]
[337792170,1726121461153,-1398.07,0.00016986,2]
[337792171,1726121461162,-500.0,0.00016986,2]
[337792172,1726121461171,-500.0,0.00016986,2]
[337792173,1726121461181,-222.400699,0.00016986,2]
[337792174,1726121461191,-484.30394136,0.00016986,2]
[337792175,1726121461202,-1082.88,0.00016986,2]
[337792176,1726121461213,-508.78125032,0.00016986,2]
[337792177,1726121461223,-500.0,0.00016986,2]
[337792178,1726121461234,-500.0,0.00016986,2]
[337792179,1726121461244,-505.59330755,0.00016986,2]
[337792180,1726121461255,-151.0,0.00016986,2]
[337792181,1726121461264,-151.0,0.00016986,2]
[337792182,1726121461275,-500.0,0.00016986,2]
[337792183,1726121461284,-500.0,0.00016986,2]
[337792184,1726121461294,-500.0,0.00016986,2]
[337792185,1726121461303,-500.0,0.00016986,2]
[337792186,1726121461312,-522.41108899,0.00016986,2]
[337792187,1726121461323,-589.91,0.00016986,2]
[337792188,1726121461334,-543.26,0.00016986,2]
[337792189,1726121461343,-682.96,0.00016986,2]
[337792190,1726121461354,-822.97,0.00016986,2]
[337792191,1726121461364,-506.9806889,0.00016986,2]
[337792192,1726121461373,-151.0,0.00016986,2]
[337792193,1726121461383,-190.026946,0.00016986,2]
[337792194,1726121461393,-508.63297351,0.00016986,2]
[337792195,1726121461403,-500.0,0.00016986,2]
[337792196,1726121461413,-190.026946,0.00016986,2]
[337792197,1726121461423,-500.0,0.00016986,2]
[337792198,1726121461437,-500.0,0.00016986,2]
[337792199,1726121461453,-1315.99,0.00016986,2]
[337792200,1726121461472,-510.2648053,0.00016986,2]
[337792201,1726121461483,-857.5,0.00016986,2]
[337792202,1726121461493,-1015.36,0.00016986,2]
[337792203,1726121461503,-500.0,0.00016986,2]
[337792204,1726121461512,-500.0,0.00016986,2]
[337792205,1726121461521,-500.0,0.00016986,2]
[337792206,1726121461531,-500.0,0.00016986,2]
[337792207,1726121461542,-1887.42,0.00016986,2]
[337792208,1726121461554,-500.0,0.00016986,2]
[337792209,1726121461563,-151.0,0.00016986,2]